fUST/lending_fUST_20240624
["ID","MTS","AMOUNT","RATE_DAILY","PERIOD"]
[330214088,1719171040660,-2195.58,0.00016438,2]
[330214089,1719171040671,-500.0,0.00016438,2]
[330214090,1719171040682,-500.0,0.00016438,2]
[330214091,1719171040694,-426.9345968,0.00016438,2]
[330214092,1719171040706,-500.0,0.00016438,2]
[330214093,1719171040717,-500.0,0.00016438,2]
[330214094,1719171040728,-500.0,0.00016438,2]
[330214095,1719171040739,-745.42,0.00016438,2]
[330214096,1719171040750,-500.0,0.00016438,2]
[330214097,1719171040760,-500.0,0.00016438,2]
[330214098,1719171040770,-512.58302391,0.00016438,2]
[330214099,1719171040782,-500.0,0.00016438,2]
[330214100,1719171040792,-500.0,0.00016438,2]
[330214101,1719171040803,-500.0,0.00016438,2]
[330214102,1719171040814,-503.23688875,0.00016438,2]
[330214103,1719171040824,-500.0,0.00016438,2]
[330214104,1719171040835,-661.39,0.00016438,2]
[330214105,1719171040845,-513.51302212,0.00016438,2]
[330214106,1719171040856,-779.76,0.00016438,2]
[330214107,1719171040867,-500.0,0.00016438,2]
[330214108,1719171040879,-500.0,0.00016438,2]
[330214109,1719171040891,-500.0,0.00016438,2]
[330214110,1719171040902,-500.0,0.00016438,2]
[330214111,1719171040913,-512.93,0.00016438,2]
[330214112,1719171040925,-631.95,0.00016438,2]
[330214113,1719171040936,-500.0,0.00016438,2]
[330214114,1719171040947,-500.0,0.00016438,2]
[330214116,1719171040958,-500.0,0.00016438,2]
[330214118,1719171040968,-500.0,0.00016438,2]
[330214120,1719171040978,-1015.85,0.00016438,2]
[330214122,1719171040988,-500.0,0.00016438,2]
[330214123,1719171040998,-500.0,0.00016438,2]
[330214125,1719171041008,-1240.14,0.00016438,2]
[330214127,1719171041018,-1570.11,0.00016438,2]
[330214129,1719171041028,-500.0,0.00016438,2]
[330214131,1719171041039,-500.0,0.00016438,2]
[330214132,1719171041048,-500.0,0.00016438,2]
[330214133,1719171041058,-500.0,0.00016438,2]
[330214134,1719171041068,-500.0,0.00016438,2]
[330214135,1719171041078,-594.81,0.00016438,2]
[330214136,1719171041087,-500.0,0.00016438,2]
[330214137,1719171041097,-500.0,0.00016438,2]
[330214138,1719171041108,-500.0,0.00016438,2]
[330214139,1719171041118,-500.0,0.00016438,2]
[330214140,1719171041128,-920.71,0.00016438,2]
[330214141,1719171041138,-808.38,0.00016438,2]
[330214142,1719171041284,-500.0,0.00016438,2]
[330214143,1719171041295,-34340.45,0.00016438,2]
[330214144,1719171041304,-500.0,0.00016438,2]
[330214145,1719171041314,-500.0,0.00016438,2]
[330214146,1719171041323,-548.05,0.00016438,2]
[330214147,1719171041333,-500.0,0.00016438,2]
[330214148,1719171041343,-6104.06,0.00016438,2]
[330214149,1719171041353,-512.20271342,0.00016438,2]
[330214150,1719171041362,-500.0,0.00016438,2]
[330214151,1719171041372,-21134.64,0.00016438,2]
[330214152,1719171041381,-1297.08,0.00016438,2]
[330214153,1719171041391,-513.60575091,0.00016438,2]
[330214154,1719171041401,-500.0,0.00016438,2]
[330214155,1719171041410,-787.14,0.00016438,2]
[330214156,1719171041420,-3312.32,0.00016438,2]
[330214157,1719171041429,-1376.71,0.00016438,2]
[330214158,1719171041439,-500.0,0.00016438,2]
[330214159,1719171041452,-703.66,0.00016438,2]
[330214160,1719171041461,-500.0,0.00016438,2]
[330214161,1719171041471,-500.0,0.00016438,2]
[330214162,1719171041481,-500.0,0.00016438,2]
[330214163,1719171041490,-6598.15,0.00016438,2]
[330214164,1719171041500,-500.0,0.00016438,2]
[330214165,1719171041509,-500.0,0.00016438,2]
[330214166,1719171041518,-641.4,0.00016438,2]
[330214167,1719171041528,-500.0,0.00016438,2]
[330214168,1719171041537,-1407.62,0.00016438,2]
[330214169,1719171041547,-500.0,0.00016438,2]
[330214170,1719171041556,-473.87871896,0.00016438,2]
[330214171,1719171041566,-500.0,0.00016438,2]
[330214172,1719171041575,-2521.67,0.00016438,2]
[330214173,1719171041584,-500.0,0.00016438,2]
[330214174,1719171041594,-565.76,0.00016438,2]
[330214175,1719171041603,-508.7203825,0.00016438,2]
[330214176,1719171041613,-490.01253011,0.00016438,2]
[330214177,1719171041623,-500.0,0.00016438,2]
[330214178,1719171041632,-670.03,0.00016438,2]
[330214179,1719171041642,-554.62,0.00016438,2]
[330214180,1719171041651,-500.0,0.00016438,2]
[330214181,1719171041661,-1148.11,0.00016438,2]
[330214182,1719171041670,-1598.28,0.00016438,2]
[330214183,1719171041680,-928.76,0.00016438,2]
[330214184,1719171041690,-1013.15,0.00016438,2]
[330214185,1719171041700,-500.0,0.00016438,2]
[330214186,1719171041709,-579.69,0.00016438,2]
[330214187,1719171041719,-4216.41,0.00016438,2]
[330214188,1719171041728,-1305.87,0.00016438,2]
[330214189,1719171041738,-500.0,0.00016438,2]
[330214190,1719171041747,-500.0,0.00016438,2]
[330214191,1719171041756,-500.0,0.00016438,2]
[330214192,1719171041765,-500.0,0.00016438,2]
[330214193,1719171041775,-500.0,0.00016438,2]
[330214194,1719171041785,-500.0,0.00016438,2]
[330214195,1719171041794,-574.07,0.00016438,2]
[330214196,1719171041803,-500.0,0.00016438,2]
[330214197,1719171041812,-7079.41,0.00016438,2]
[330214198,1719171041822,-500.0,0.00016438,2]
[330214199,1719171041832,-500.0,0.00016438,2]
[330214200,1719171041842,-500.0,0.00016438,2]
[330214201,1719171041851,-703.57,0.00016438,2]
[330214202,1719171041861,-500.0,0.00016438,2]
[330214203,1719171041870,-1379.03,0.00016438,2]
[330214204,1719171041880,-500.0,0.00016438,2]
[330214205,1719171041890,-500.0,0.00016438,2]
[330214206,1719171041900,-350.25959646,0.00016438,2]
[330214207,1719171041910,-1166.1,0.00016438,2]
[330214208,1719171041919,-11.16754788,0.00016438,2]
[330214209,1719171042574,-488.83245212,0.00016438,2]
[330214210,1719171042584,-915.44,0.00016438,2]
[330214211,1719171042593,-167.151521,0.00016438,2]
[330214212,1719171042603,-1042.89,0.00016438,2]
[330214213,1719171042612,-590.37,0.00016438,2]
[330214214,1719171042622,-500.0,0.00016438,2]
[330214215,1719171042631,-1306.2,0.00016438,2]
[330214216,1719171042641,-167.151521,0.00016438,2]
[330214217,1719171042651,-500.0,0.00016438,2]
[330214218,1719171042661,-504.26,0.00016438,2]
[330214219,1719171042671,-541.70945954,0.00016438,2]
[330214220,1719171042680,-500.0,0.00016438,2]
[330214221,1719171042690,-519.6408046,0.00016438,2]
[330214222,1719171042700,-6836.12,0.00016438,2]
[330214223,1719171042710,-500.0,0.00016438,2]
[330214224,1719171042720,-808.67,0.00016438,2]
[330214225,1719171042732,-548.21,0.00016438,2]
[330214226,1719171042742,-500.0,0.00016438,2]
[330214227,1719171042752,-500.0,0.00016438,2]
[330214228,1719171042762,-3125.33,0.00016438,2]
[330214229,1719171042772,-500.0,0.00016438,2]
[330214230,1719171042782,-500.0,0.00016438,2]
[330214231,1719171042792,-671.17,0.00016438,2]
[330214232,1719171042802,-667.04,0.00016438,2]
[330214233,1719171042811,-500.0,0.00016438,2]
[330214234,1719171042821,-500.0,0.00016438,2]
[330214235,1719171042830,-500.0,0.00016438,2]
[330214236,1719171042840,-1866.18497582,0.00016438,2]
[330214276,1719171043939,-719.14295483,0.00015833,2]
[330214278,1719171043949,-159.70589002,0.00015998,2]
[330214280,1719171043959,-2853.40502418,0.00016438,2]
[330214282,1719171043968,-1862.96,0.00016438,2]
[330214283,1719171043978,-500.0,0.00016438,2]
[330214284,1719171043987,-500.0,0.00016438,2]
[330214285,1719171043997,-500.0,0.00016438,2]
[330214286,1719171044007,-500.0,0.00016438,2]
[330214287,1719171044017,-1216.96,0.00016438,2]
[330214288,1719171044026,-513.21,0.00016438,2]
[330214289,1719171044037,-513.21,0.00016438,2]
[330214290,1719171044046,-513.21,0.00016438,2]
[330214291,1719171044056,-513.21,0.00016438,2]
[330214292,1719171044066,-513.21,0.00016438,2]
[330214293,1719171044077,-513.21,0.00016438,2]
[330214294,1719171044087,-513.21,0.00016438,2]
[330214295,1719171044096,-500.0,0.00016438,2]
[330214296,1719171044106,-513.21,0.00016438,2]
[330214297,1719171044117,-513.21,0.00016438,2]
[330214298,1719171044127,-513.21,0.00016438,2]
[330214299,1719171044137,-22356.29,0.00016438,2]
[330214300,1719171044146,-151.0,0.00016438,2]
[330214301,1719171044156,-559.31710814,0.00016438,2]
[330214302,1719171044165,-500.0,0.00016438,2]
[330214303,1719171044179,-1348.52,0.00016438,2]
[330214304,1719171044189,-500.0,0.00016438,2]
[330214305,1719171044198,-1604.29,0.00016438,2]
[330214306,1719171044208,-543.72,0.00016438,2]
[330214307,1719171044218,-500.0,0.00016438,2]
[330214308,1719171044227,-514.6,0.00016438,2]
[330214309,1719171044237,-500.0,0.00016438,2]
[330214310,1719171044247,-3767.85,0.00016438,2]
[330214311,1719171044259,-500.0,0.00016438,2]
[330214312,1719171044269,-500.0,0.00016438,2]
[330214313,1719171044279,-600.17,0.00016438,2]
[330214314,1719171044288,-250.0,0.00016438,2]
[330214315,1719171044299,-500.0,0.00016438,2]
[330214316,1719171044308,-500.0,0.00016438,2]
[330214317,1719171044318,-2343.99,0.00016438,2]
[330214318,1719171044327,-500.0,0.00016438,2]
[330214319,1719171044337,-6800.7,0.00016438,2]
[330214320,1719171044347,-1884.17,0.00016438,2]
[330214321,1719171044356,-151.0,0.00016438,2]
[330214322,1719171044366,-1399.46,0.00016438,2]
[330214323,1719171044375,-500.0,0.00016438,2]
[330214324,1719171044386,-500.0,0.00016438,2]
[330214325,1719171044395,-500.0,0.00016438,2]
[330214326,1719171044405,-500.0,0.00016438,2]
[330214327,1719171044415,-1126.18,0.00016438,2]
[330214328,1719171044424,-151.0,0.00016438,2]
[330214329,1719171044434,-1494.69,0.00016438,2]
[330214330,1719171044444,-500.0,0.00016438,2]
[330214331,1719171044454,-500.0,0.00016438,2]
[330214332,1719171044463,-2672.93,0.00016438,2]
[330214333,1719171044473,-500.0,0.00016438,2]
[330214334,1719171044482,-500.0,0.00016438,2]
[330214335,1719171044492,-500.0,0.00016438,2]
[330214336,1719171044631,-258.10119804,0.00016438,2]
[330214337,1719171044642,-789.21,0.00016438,2]
[330214338,1719171044652,-7734.7,0.00016438,2]
[330214339,1719171044662,-500.0,0.00016438,2]
[330214340,1719171044671,-500.0,0.00016438,2]
[330214341,1719171044681,-500.0,0.00016438,2]
[330214342,1719171044690,-500.0,0.00016438,2]
[330214343,1719171044701,-772.65,0.00016438,2]
[330214344,1719171044711,-513.21,0.00016461,2]
[330214345,1719171044721,-513.21,0.00016461,2]
[330214346,1719171044731,-513.21,0.00016461,2]
[330214347,1719171044740,-513.21,0.00016461,2]
[330214348,1719171044750,-513.21,0.00016461,2]
[330214349,1719171044759,-513.21,0.00016461,2]
[330214350,1719171044769,-513.21,0.00016461,2]
[330214351,1719171044778,-267388.45865169,0.00016462,2]
[330214352,1719171044788,-151.0,0.00016462,2]
[330214353,1719171044798,-151.0,0.00016462,2]
[330214354,1719171044808,-151.0,0.00016462,2]
[330214355,1719171044817,-151.0,0.00016462,2]
[330214356,1719171044827,-151.0,0.00016462,2]
[330214357,1719171044837,-151.0,0.00016462,2]
[330214358,1719171044847,-151.0,0.00016462,2]
[330214359,1719171044856,-151.0,0.00016462,2]
[330214360,1719171044866,-167.151521,0.00016462,2]
[330214361,1719171044876,-167.151521,0.00016462,2]
[330214362,1719171044885,-151.0,0.00016462,2]
[330214363,1719171044895,-151.0,0.00016462,2]
[330214364,1719171044905,-175.97073239,0.00016466,2]
[330214365,1719171044914,-189.0849716,0.00016486,2]
[330214366,1719171044924,-179.51789787,0.00016486,2]
[330214367,1719171044934,-529.88377611,0.000165,2]
[330214368,1719171044944,-402.58396579,0.00016522,2]
[330214369,1719171044955,-191.09191803,0.00016522,2]
[330214370,1719171044965,-1487.05343949,0.00016525,2]
[330214371,1719171044975,-1102.77481401,0.00016525,2]
[330214372,1719171044984,-154.83742071,0.00016589,2]
[330214373,1719171044994,-401.59956828,0.00016589,2]
[330214374,1719171045004,-162.47527944,0.00016607,2]
[330214375,1719171045014,-287.05696465,0.00016698,2]
[330214376,1719171045024,-327.4,0.00016706,2]
[330214377,1719171045034,-513.21,0.00016711,2]
[330214378,1719171045044,-513.21,0.00016711,2]
[330214379,1719171045053,-513.21,0.00016711,2]
[330214380,1719171045063,-513.21,0.00016711,2]
[330214381,1719171045073,-513.21,0.00016711,2]
[330214382,1719171045082,-513.21,0.00016711,2]
[330214383,1719171045092,-513.27759075,0.00016711,2]
[330214384,1719171045102,-154.83742071,0.00016711,2]
[330214385,1719171045112,-500.0,0.00016712,2]
[330214386,1719171045121,-500.0,0.00016712,2]
[330214387,1719171045131,-500.0,0.00016712,2]
[330214388,1719171045140,-500.0,0.00016712,2]
[330214389,1719171045150,-500.0,0.00016712,2]
[330214390,1719171045159,-500.0,0.00016712,2]
[330214391,1719171045170,-555.18,0.00016712,2]
[330214392,1719171045184,-516.80454583,0.00016712,2]
[330214393,1719171045193,-500.0,0.00016712,2]
[330214394,1719171045204,-500.0,0.00016712,2]
[330214395,1719171045215,-500.0,0.00016712,2]
[330214396,1719171045224,-500.0,0.00016712,2]
[330214397,1719171045234,-500.0,0.00016712,2]
[330214398,1719171045244,-578.48,0.00016712,2]
[330214399,1719171045254,-500.0,0.00016712,2]
[330214400,1719171045264,-739.13,0.00016712,2]
[330214401,1719171045274,-500.0,0.00016712,2]
[330214402,1719171045284,-500.0,0.00016712,2]
[330214403,1719171045294,-500.0,0.00016712,2]
[330214404,1719171045303,-656.89,0.00016712,2]
[330214405,1719171045314,-500.0,0.00016712,2]
[330214406,1719171045323,-500.0,0.00016712,2]
[330214407,1719171045333,-151.0,0.00016712,2]
[330214408,1719171045343,-508.47852865,0.00016712,2]
[330214409,1719171045353,-500.0,0.00016712,2]
[330214410,1719171045363,-500.0,0.00016712,2]
[330214411,1719171045373,-500.0,0.00016712,2]
[330214412,1719171045382,-500.0,0.00016712,2]
[330214413,1719171045392,-529.15,0.00016712,2]
[330214414,1719171045401,-500.0,0.00016712,2]
[330214415,1719171045411,-500.0,0.00016712,2]
[330214416,1719171045421,-547.01,0.00016712,2]
[330214417,1719171045431,-500.0,0.00016712,2]
[330214418,1719171045441,-500.0,0.00016712,2]
[330214419,1719171045452,-500.0,0.00016712,2]
[330214420,1719171045462,-453.99253579,0.00016712,2]
[330214454,1719171221144,228.6225034,0.00013944,2]
[330214456,1719171253050,250.0,0.00013924,2]
[330214482,1719171522399,499.71496786,0.00019,10]
[330214483,1719171556480,340.04073166,0.00013924,2]
[330214502,1719171662806,3000.0,0.00013752,2]
[330214503,1719171714247,6806.8652066,0.00013723,2]
[330214504,1719171789195,24900.0,0.00013838,2]
[330214508,1719172077468,500.02,0.00023,10]
[330214510,1719172161016,-490.50116108,0.00014043,2]
[330214511,1719172161055,-490.50116108,0.00014043,2]
[330214515,1719172205695,1809.4205528,0.00013699,2]
[330214516,1719172211468,1000.0,0.00016,9]
[330214552,1719172232162,-997.21388721,0.00014109,2]
[330214554,1719172232173,-23412.14291439,0.00014109,2]
[330214609,1719172238268,-181.53915781,0.00014043,2]
[330214610,1719172238278,-17766.05072863,0.00014109,2]
[330214611,1719172238287,-300.0,0.00014135,2]
[330214612,1719172238296,-300.0,0.00014135,2]
[330214613,1719172238305,-292.95882568,0.00014318,2]
[330214614,1719172238314,-3233.23734369,0.00014443,2]
[330214615,1719172238324,-476.67714205,0.00014917,2]
[330214616,1719172238335,-2096.04884423,0.00014917,2]
[330214617,1719172238347,-660.5113574,0.00014917,2]
[330214618,1719172238356,-10560.92625688,0.00014948,2]
[330214619,1719172238365,-947.47485199,0.00015124,2]
[330214620,1719172238375,-159.33316742,0.00015151,2]
[330214621,1719172238384,-3233.23734368,0.00015391,2]
[330214622,1719172238393,-420.0,0.00015483,2]
[330214623,1719172238403,-420.0,0.00015548,2]
[330214624,1719172238412,-154.85288975,0.00015838,2]
[330214625,1719172238422,-3233.23734368,0.00015864,2]
[330214626,1719172238431,-175.97073239,0.00015999,2]
[330214627,1719172238441,-490.22115977,0.00015999,2]
[330214628,1719172238450,-208.75334757,0.00016043,2]
[330214629,1719172238459,-3233.23734368,0.00016338,2]
[330214630,1719172238469,-2000.0,0.00016338,2]
[330214631,1719172238478,-2823.67048429,0.00016404,2]
[330214632,1719172238488,-898.61359266,0.00016404,2]
[330214633,1719172238497,-154.85288975,0.00016437,2]
[330214634,1719172238507,-500.0,0.00016438,2]
[330214635,1719172238516,-500.0,0.00016438,2]
[330214636,1719172238526,-613.03,0.00016438,2]
[330214637,1719172238535,-505.95,0.00016438,2]
[330214638,1719172238545,-500.0,0.00016438,2]
[330214639,1719172238554,-500.0,0.00016438,2]
[330214640,1719172238563,-1067.67,0.00016438,2]
[330214641,1719172238573,-500.0,0.00016438,2]
[330214642,1719172238582,-500.0,0.00016438,2]
[330214643,1719172238594,-500.0,0.00016438,2]
[330214644,1719172238604,-500.0,0.00016438,2]
[330214645,1719172238614,-500.0,0.00016438,2]
[330214646,1719172238623,-1442.24,0.00016438,2]
[330214647,1719172238634,-500.0,0.00016438,2]
[330214648,1719172238643,-500.0,0.00016438,2]
[330214649,1719172238652,-500.0,0.00016438,2]
[330214650,1719172238662,-500.0,0.00016438,2]
[330214651,1719172238672,-500.0,0.00016438,2]
[330214652,1719172238682,-497.86083053,0.00016438,2]
[330214653,1719172238691,-505.76287138,0.00016438,2]
[330214654,1719172238700,-500.0,0.00016438,2]
[330214655,1719172238710,-167.99217524,0.00016438,2]
[330214656,1719172238719,-500.0,0.00016438,2]
[330214657,1719172238729,-552.97381567,0.00016438,2]
[330214658,1719172238738,-500.0,0.00016438,2]
[330214659,1719172238747,-516.27778692,0.00016438,2]
[330214660,1719172238756,-1116.42,0.00016438,2]
[330214661,1719172238766,-726.77,0.00016438,2]
[330214662,1719172238776,-376.7183395,0.00016438,2]
[330214663,1719172238785,-500.0,0.00016438,2]
[330214664,1719172238795,-555.47457912,0.00016438,2]
[330214665,1719172238804,-500.0,0.00016438,2]
[330214666,1719172238814,-512.58302391,0.00016438,2]
[330214667,1719172238823,-745.42,0.00016438,2]
[330214668,1719172238833,-500.0,0.00016438,2]
[330214669,1719172238842,-500.0,0.00016438,2]
[330214670,1719172238852,-500.0,0.00016438,2]
[330214671,1719172238862,-628.51862753,0.00016438,2]
[330214672,1719172238872,-500.0,0.00016438,2]
[330214673,1719172238881,-500.0,0.00016438,2]
[330214674,1719172238891,-661.39,0.00016438,2]
[330214675,1719172238901,-500.0,0.00016438,2]
[330214676,1719172238910,-500.0,0.00016438,2]
[330214677,1719172238919,-500.0,0.00016438,2]
[330214678,1719172238929,-500.0,0.00016438,2]
[330214679,1719172238941,-500.0,0.00016438,2]
[330214680,1719172238951,-500.0,0.00016438,2]
[330214681,1719172238960,-1061.07,0.00016438,2]
[330214682,1719172238969,-219.28036486,0.00016438,2]
[330214683,1719172238984,-280.71963514,0.00016438,2]
[330214684,1719172238994,-500.0,0.00016438,2]
[330214685,1719172239004,-500.0,0.00016438,2]
[330214686,1719172239013,-594.81,0.00016438,2]
[330214687,1719172239024,-500.0,0.00016438,2]
[330214688,1719172239034,-500.0,0.00016438,2]
[330214689,1719172239044,-1725.87,0.00016438,2]
[330214690,1719172239054,-500.0,0.00016438,2]
[330214691,1719172239064,-500.0,0.00016438,2]
[330214692,1719172239074,-500.0,0.00016438,2]
[330214693,1719172239084,-500.0,0.00016438,2]
[330214694,1719172239093,-500.0,0.00016438,2]
[330214695,1719172239103,-500.0,0.00016438,2]
[330214696,1719172239114,-500.0,0.00016438,2]
[330214697,1719172239124,-500.0,0.00016438,2]
[330214698,1719172239134,-500.0,0.00016438,2]
[330214699,1719172239143,-500.0,0.00016438,2]
[330214700,1719172239154,-500.0,0.00016438,2]
[330214701,1719172239163,-512.20271342,0.00016438,2]
[330214702,1719172239174,-500.0,0.00016438,2]
[330214703,1719172239184,-500.0,0.00016438,2]
[330214704,1719172239194,-500.0,0.00016438,2]
[330214705,1719172239204,-590.57372508,0.00016438,2]
[330214706,1719172239218,-610.42627492,0.00016438,2]
[330214707,1719172239228,-500.0,0.00016438,2]
[330214708,1719172239239,-500.0,0.00016438,2]
[330214709,1719172239249,-500.0,0.00016438,2]
[330214710,1719172239259,-1539.92,0.00016438,2]
[330214711,1719172239269,-500.0,0.00016438,2]
[330214712,1719172239278,-500.0,0.00016438,2]
[330214713,1719172239288,-548.05,0.00016438,2]
[330214714,1719172239298,-1374.83,0.00016438,2]
[330214715,1719172239308,-500.0,0.00016438,2]
[330214716,1719172239318,-500.0,0.00016438,2]
[330214717,1719172239328,-472.60205159,0.00016438,2]
[330214718,1719172239339,-500.0,0.00016438,2]
[330214719,1719172239349,-1839.55,0.00016438,2]
[330214720,1719172239360,-513.60575091,0.00016438,2]
[330214721,1719172239369,-500.0,0.00016438,2]
[330214722,1719172239379,-4243.1,0.00016438,2]
[330214723,1719172239389,-671.82,0.00016438,2]
[330214724,1719172239399,-500.0,0.00016438,2]
[330214725,1719172239408,-500.0,0.00016438,2]
[330214726,1719172239418,-500.0,0.00016438,2]
[330214727,1719172239428,-500.0,0.00016438,2]
[330214728,1719172239438,-500.0,0.00016438,2]
[330214729,1719172239448,-500.0,0.00016438,2]
[330214730,1719172239458,-500.0,0.00016438,2]
[330214731,1719172239468,-500.0,0.00016438,2]
[330214732,1719172239478,-449.73124058,0.00016438,2]
[330214733,1719172239491,-500.0,0.00016438,2]
[330214734,1719172239502,-500.0,0.00016438,2]
[330214735,1719172239512,-500.0,0.00016438,2]
[330214736,1719172239522,-500.0,0.00016438,2]
[330214737,1719172239531,-565.76,0.00016438,2]
[330214738,1719172239540,-500.0,0.00016438,2]
[330214739,1719172239550,-500.0,0.00016438,2]
[330214740,1719172239560,-500.0,0.00016438,2]
[330214741,1719172239569,-897.91,0.00016438,2]
[330214742,1719172239579,-500.0,0.00016438,2]
[330214743,1719172239589,-633.56,0.00016438,2]
[330214744,1719172239602,-500.0,0.00016438,2]
[330214745,1719172239612,-500.0,0.00016438,2]
[330214746,1719172239622,-877.3,0.00016438,2]
[330214748,1719172239632,-500.0,0.00016438,2]
[330214750,1719172239642,-1305.87,0.00016438,2]
[330214752,1719172239652,-426.9345968,0.00016438,2]
[330214754,1719172239662,-1871.31,0.00016438,2]
[330214756,1719172239674,-500.0,0.00016438,2]
[330214757,1719172239684,-500.0,0.00016438,2]
[330214758,1719172239694,-500.0,0.00016438,2]
[330214759,1719172239705,-2195.58,0.00016438,2]
[330214760,1719172239715,-500.0,0.00016438,2]
[330214761,1719172239724,-500.0,0.00016438,2]
[330214762,1719172239738,-248.52639496,0.00016438,2]
[330214763,1719172239748,-500.0,0.00016438,2]
[330214764,1719172239758,-521.07,0.00016438,2]
[330214765,1719172239768,-500.0,0.00016438,2]
[330214766,1719172239779,-500.0,0.00016438,2]
[330214767,1719172239788,-500.0,0.00016438,2]
[330214768,1719172239798,-503.23688875,0.00016438,2]
[330214769,1719172239808,-500.0,0.00016438,2]
[330214770,1719172239818,-520.7039951,0.00016438,2]
[330214771,1719172239828,-513.51302212,0.00016438,2]
[330214772,1719172239839,-500.0,0.00016438,2]
[330214773,1719172239849,-500.0,0.00016438,2]
[330214774,1719172239860,-500.0,0.00016438,2]
[330214775,1719172239870,-250.0,0.00016438,2]
[330214776,1719172239880,-779.76,0.00016438,2]
[330214777,1719172239892,-500.0,0.00016438,2]
[330214778,1719172239902,-500.0,0.00016438,2]
[330214779,1719172239912,-500.0,0.00016438,2]
[330214780,1719172239923,-500.0,0.00016438,2]
[330214781,1719172239933,-500.0,0.00016438,2]
[330214782,1719172239943,-509.42238587,0.00016438,2]
[330214783,1719172239953,-500.0,0.00016438,2]
[330214784,1719172239963,-500.0,0.00016438,2]
[330214785,1719172239973,-631.95,0.00016438,2]
[330214786,1719172239983,-500.0,0.00016438,2]
[330214788,1719172239993,-512.93,0.00016438,2]
[330214789,1719172240003,-511.84843862,0.00016438,2]
[330214790,1719172240013,-500.0,0.00016438,2]
[330214791,1719172240023,-500.0,0.00016438,2]
[330214792,1719172240034,-1240.14,0.00016438,2]
[330214793,1719172240044,-1015.85,0.00016438,2]
[330214794,1719172240054,-500.0,0.00016438,2]
[330214795,1719172240065,-500.0,0.00016438,2]
[330214796,1719172240075,-500.0,0.00016438,2]
[330214797,1719172240084,-1570.11,0.00016438,2]
[330214798,1719172240094,-500.0,0.00016438,2]
[330214799,1719172240104,-500.0,0.00016438,2]
[330214801,1719172240114,-500.0,0.00016438,2]
[330214803,1719172240124,-500.0,0.00016438,2]
[330214804,1719172240134,-532.05,0.00016438,2]
[330214805,1719172240144,-500.0,0.00016438,2]
[330214806,1719172240154,-500.0,0.00016438,2]
[330214807,1719172240164,-500.0,0.00016438,2]
[330214808,1719172240173,-500.0,0.00016438,2]
[330214809,1719172240182,-500.0,0.00016438,2]
[330214810,1719172240192,-808.38,0.00016438,2]
[330214811,1719172240203,-500.0,0.00016438,2]
[330214812,1719172240212,-500.0,0.00016438,2]
[330214813,1719172240222,-500.0,0.00016438,2]
[330214814,1719172240232,-920.71,0.00016438,2]
[330214815,1719172240242,-500.0,0.00016438,2]
[330214816,1719172240251,-500.0,0.00016438,2]
[330214817,1719172240261,-500.0,0.00016438,2]
[330214818,1719172240271,-500.0,0.00016438,2]
[330214819,1719172240416,-500.0,0.00016438,2]